fUSD/lending_fUSD_20250505
["ID","MTS","AMOUNT","RATE_DAILY","PERIOD"]
[359987760,1746465048514,-205180.80324519,0.0002,2]
[359987778,1746465048675,-800.82437286,0.0002,2]
[359987785,1746465048732,705.14,0.00017303,2]
[359987787,1746465048744,-8154.704015,0.0002,2]
[359987789,1746465048756,-1869.57692506,0.0002,2]
[359987792,1746465048774,-705.14,0.00019567,2]
[359987794,1746465048784,-14424.96215781,0.0002,2]
[359987797,1746465048801,-84001.00505955,0.0002,2]
[359987799,1746465048812,-25321.14843375,0.0002,2]
[359987801,1746465048824,-1862.08617678,0.0002,2]
[359987993,1746465206937,702.0,0.0003,30]
[359987994,1746465420508,1000.0,0.00018962,2]
[359987995,1746465633765,23441.01,0.00019064,2]
[359987996,1746465673476,109015.051331,0.0003,30]
[359987997,1746465967766,250.0,0.00017,2]
[359987998,1746465968858,300.0,0.00019,2]
[359988005,1746466051215,708.01,0.00017146,2]
[359988006,1746466051500,708.01,0.0001941,2]
[359988007,1746466060586,154.55,0.00018927,2]
[359988008,1746466083288,151.48,0.00019064,2]
[359988009,1746466090426,166.8,0.00015145,2]
[359988015,1746466146721,-1000.0,0.000197,2]
[359988016,1746466146747,-200.0,0.000197,2]
[359988212,1746466220744,150.0,0.00018903,2]
[359988222,1746466231808,-230.5750385,0.00019799,2]
[359988224,1746466231817,-250.0,0.00019799,2]
[359988225,1746466231826,-200.0,0.00019799,2]
[359988226,1746466231836,-81.60038367,0.00019799,2]
[359988227,1746466231888,-118.39961633,0.00019799,2]
[359988228,1746466231898,-169.266645,0.00019853,2]
[359988229,1746466231907,-154.430525,0.00019853,2]
[359988230,1746466231917,-189.93620248,0.0001986,2]
[359988231,1746466231926,-1292.10173896,0.0001988,2]
[359988232,1746466231936,-382.41313392,0.00019883,2]
[359988233,1746466231946,-382.41313388,0.00019885,2]
[359988234,1746466231955,-207.4,0.00019886,2]
[359988235,1746466231964,-382.41313388,0.00019887,2]
[359988236,1746466231974,-382.41313388,0.00019889,2]
[359988237,1746466231984,-382.41313388,0.00019891,2]
[359988238,1746466231993,-382.41313388,0.00019892,2]
[359988239,1746466232003,-382.41313388,0.00019894,2]
[359988240,1746466232013,-615.27270657,0.00019896,2]
[359988241,1746466232027,-584.72729343,0.00019896,2]
[359988242,1746466232036,-382.41313388,0.00019896,2]
[359988243,1746466232045,-24.61200132,0.00019897,2]
[359988244,1746466232057,-475.38799868,0.00019897,2]
[359988245,1746466232066,-300.0,0.00019897,2]
[359988246,1746466232075,-300.0,0.00019897,2]
[359988247,1746466232085,-382.41313388,0.00019898,2]
[359988248,1746466232094,-271.12463746,0.00019899,3]
[359988249,1746466232104,-494.63766661,0.00019899,2]
[359988250,1746466232114,-494.63766661,0.00019899,2]
[359988251,1746466232123,-494.63766661,0.00019899,2]
[359988252,1746466232134,-494.63766661,0.00019899,2]
[359988254,1746466232143,-494.63766661,0.00019899,2]
[359988256,1746466232152,-494.63766661,0.000199,2]
[359988258,1746466232163,-494.63766661,0.000199,2]
[359988260,1746466232173,-494.63766661,0.000199,2]
[359988262,1746466232183,-494.63766661,0.000199,2]
[359988264,1746466232192,-494.63766661,0.000199,2]
[359988266,1746466232202,-8585.66816849,0.000199,2]
[359988268,1746466232211,-382.41313388,0.000199,2]
[359988270,1746466232221,-943.734,0.00019924,2]
[359988272,1746466232230,-1046.61376171,0.0001994,2]
[359988274,1746466232239,-500.0,0.00019949,2]
[359988276,1746466232249,-492.32944336,0.00019949,2]
[359988278,1746466232258,-500.0,0.00019949,2]
[359988279,1746466232273,-500.0,0.00019949,2]
[359988281,1746466232283,-230.73351015,0.00019949,2]
[359988283,1746466232295,-119.26648985,0.00019949,2]
[359988284,1746466232305,-500.0,0.00019949,2]
[359988287,1746466232315,-500.0,0.00019949,2]
[359988290,1746466232324,-500.0,0.00019949,2]
[359988293,1746466232333,-500.0,0.00019949,2]
[359988296,1746466232344,-500.0,0.00019949,2]
[359988299,1746466232353,-500.0,0.00019949,2]
[359988302,1746466232362,-500.0,0.00019949,2]
[359988305,1746466232371,-500.0,0.00019949,2]
[359988308,1746466232381,-500.0,0.00019949,2]
[359988311,1746466232390,-164.76266951,0.00019949,2]
[359988314,1746466232399,-184403.21695198,0.0001995,2]
[359988316,1746466232410,-609.88347487,0.0001995,2]
[359988318,1746466232421,-6097.15198333,0.0001995,2]
[359988321,1746466232438,-556.53260896,0.0001995,2]
[359988323,1746466232450,-1816.10000002,0.0001995,2]
[359988326,1746466232462,-350.0,0.0001995,2]
[359988328,1746466232473,-720.63172157,0.0001995,2]
[359988330,1746466232487,-627.68208494,0.0001995,2]
[359988332,1746466232499,-6268.71619553,0.0001995,2]
[359988351,1746466238007,-283.37740853,0.00019815,2]
[359988352,1746466238169,-513.62259147,0.00019815,2]
[359988353,1746466238179,-1197.57646753,0.0001995,2]
[359988354,1746466238227,-39662.38075536,0.0001995,2]
[359988466,1746466240020,-6167.3096582,0.0001995,2]
[359988469,1746466240032,-6061.59731699,0.0001995,2]
[359988471,1746466240044,-10083.92777197,0.0001995,2]
[359988475,1746466240074,-1010.01267846,0.0001995,2]
[359988487,1746466240183,-583.12849886,0.0001995,2]
[359988494,1746466240238,-30960.55143175,0.0001995,2]
[359988496,1746466240252,-1313.96851799,0.0001995,2]
[359988499,1746466240269,-10958.51081409,0.0001995,2]
[359988501,1746466240278,-2679.816,0.00019951,2]
[359988503,1746466240288,-179.985,0.00019951,2]
[359988505,1746466240298,-500.0,0.00019973,2]
[359988507,1746466240307,-500.0,0.00019979,2]
[359988509,1746466240318,-500.0,0.00019979,2]
[359988511,1746466240329,-500.0,0.00019979,2]
[359988513,1746466240339,-500.0,0.00019979,2]
[359988515,1746466240350,-398.26245089,0.00019979,2]
[359988517,1746466240359,-148355.33295737,0.0001998,2]
[359988519,1746466240369,-40703.26777419,0.00019985,2]
[359988521,1746466240379,-151.0,0.00019986,2]
[359988523,1746466240388,-151.0,0.00019986,2]
[359988525,1746466240397,-668.65185757,0.00019986,2]
[359988527,1746466240407,-805.53,0.00019989,3]
[359988528,1746466240416,-14944.29610417,0.00019997,3]
[359988529,1746466240426,-150.0,0.00019997,2]
[359988530,1746466240436,-150.0,0.00019997,2]
[359988531,1746466240448,-150.0,0.00019997,2]
[359988532,1746466240458,-16071.1235207,0.00019998,2]
[359988533,1746466240467,-7496.39,0.00019998,2]
[359988534,1746466240477,-450.0,0.00019998,2]
[359988535,1746466240486,-450.0,0.00019998,2]
[359988536,1746466240496,-355.77,0.00019998,2]
[359988538,1746466240507,-450.0,0.00019998,2]
[359988540,1746466240516,-500.0,0.00019998,2]
[359988542,1746466240525,-450.0,0.00019998,2]
[359988544,1746466240538,-494.01282775,0.00019998,2]
[359988546,1746466240548,-450.0,0.00019998,2]
[359988548,1746466240557,-450.0,0.00019998,2]
[359988550,1746466240567,-450.0,0.00019998,2]
[359988552,1746466240576,-255.76,0.00019998,2]
[359988554,1746466240586,-353.43,0.00019998,2]
[359988556,1746466240595,-397.82,0.00019998,2]
[359988559,1746466240605,-450.0,0.00019998,2]
[359988560,1746466240614,-450.0,0.00019998,2]
[359988563,1746466240623,-450.0,0.00019998,2]
[359988565,1746466240633,-450.0,0.00019998,2]
[359988567,1746466240642,-450.0,0.00019998,2]
[359988569,1746466240652,-450.0,0.00019998,2]
[359988570,1746466240661,-450.0,0.00019998,2]
[359988572,1746466240670,-450.0,0.00019998,2]
[359988575,1746466240679,-450.0,0.00019998,2]
[359988576,1746466240689,-450.0,0.00019998,2]
[359988578,1746466240698,-693.86,0.00019998,2]
[359988581,1746466240707,-450.0,0.00019998,2]
[359988582,1746466240717,-450.0,0.00019998,2]
[359988584,1746466240726,-450.0,0.00019998,2]
[359988586,1746466240736,-450.0,0.00019998,2]
[359988588,1746466240745,-450.0,0.00019998,2]
[359988590,1746466240756,-450.0,0.00019998,2]
[359988593,1746466240765,-450.0,0.00019998,2]
[359988595,1746466240775,-304.23,0.00019998,2]
[359988597,1746466240784,-450.0,0.00019998,2]
[359988601,1746466240793,-450.0,0.00019998,2]
[359988604,1746466240802,-666.0,0.00019999,2]
[359988606,1746466240815,-450.0,0.00019999,2]
[359988609,1746466240825,-450.0,0.00019999,2]
[359988612,1746466240834,-272.82,0.00019999,2]
[359988615,1746466240844,-450.0,0.00019999,2]
[359988618,1746466240853,-476.33421661,0.00019999,2]
[359988620,1746466240862,-450.0,0.00019999,2]
[359988622,1746466240871,-480.74,0.00019999,2]
[359988624,1746466240880,-210.04,0.00019999,2]
[359988626,1746466240889,-7496.39,0.00019999,2]
[359988628,1746466240898,-7496.39,0.00019999,2]
[359988630,1746466240908,-7496.39,0.00019999,2]
[359988632,1746466240917,-7496.39,0.00019999,2]
[359988634,1746466240927,-6838.64590501,0.00019999,2]
[359988637,1746466240939,-657.74409499,0.00019999,2]
[359988639,1746466240948,-342.25590501,0.00019999,2]
[359988641,1746466240959,-2307.27610131,0.00019999,2]
[359988643,1746466240974,-4032.71134052,0.00019999,2]
[359988646,1746466240985,-814.14665316,0.00019999,2]
[359988648,1746466240994,-131.35134684,0.00019999,2]
[359988836,1746466243049,-539.02504613,0.00019999,2]
[359988838,1746466243061,-373.33897885,0.00019999,2]
[359988840,1746466243072,-553.75943531,0.00019999,2]
[359988842,1746466243084,-681.46677972,0.00019999,2]
[359988848,1746466243158,-2088.10672665,0.00019999,2]
[359989103,1746466245856,-3129.3416865,0.00019999,2]
[359989105,1746466245865,-3398.2583135,0.00019999,2]
[359989121,1746466246015,-516.675,0.00019999,2]
[359989123,1746466246026,-476.04577012,0.00019999,2]
[359993874,1746466318161,200.0,0.00019249,2]
[359993892,1746466384880,480.29,0.00019064,2]
[359993893,1746466385877,480.29,0.00026213,120]
[359993894,1746466386108,480.29,0.00028596,120]
[359993895,1746466440081,1715.46,0.00019029,2]
[359993896,1746466481399,2436.27841595,0.00030136,120]
[359993899,1746466585234,14995.00647048,0.00018937,2]
[359993900,1746466595159,250.0,0.00019699,2]
[359993901,1746466628349,14977.104884,7.945e-05,2]
[359993902,1746466700395,166.63,0.0001958,2]
[359993903,1746466702871,1000.0,0.00019009,2]
[359993904,1746466817574,1193.96,0.00018984,2]
[359993905,1746466848888,-219.0462865,0.00019799,2]
[359993906,1746466848911,-71.5584235,0.000198,2]
[359993907,1746466850583,1817.36,0.00018984,2]
[359993908,1746466850645,-128.4415765,0.000198,2]
[359993909,1746466850668,-90.60471,0.000198,2]
[359993910,1746466864861,-109.39529,0.000198,2]
[359993911,1746466864884,-181.20942,0.00019833,2]
[359993912,1746466881293,1854.18864552,0.00019009,2]
[359993913,1746466881322,22045.81135448,0.00019009,2]
[359993914,1746467101589,195.15,0.00018979,2]
[359993915,1746467129082,725.37,0.00017146,2]
[359993916,1746467129301,725.37,0.0001941,2]
[359993917,1746467168494,3663.25898735,0.00019,2]
[359993923,1746467324399,156.59,0.00018961,2]
[359993951,1746467384829,151.91,0.00018961,2]
[359993955,1746467432053,-460.51626812,0.0001979,2]
[359993956,1746467432153,-1043.81180349,0.0001979,2]
[359993957,1746467432173,-1006.90790337,0.0001979,2]
[359993958,1746467432182,-250.0,0.00019792,2]
[359993959,1746467432191,-200.0,0.00019795,2]
[359993960,1746467432201,-300.0,0.00019798,2]
[359993961,1746467432210,-208.0939722,0.00019799,2]
[359993962,1746467432220,-300.0,0.00019799,2]
[359993963,1746467432230,-1200.0,0.00019799,2]
[359993964,1746467432239,-200.0,0.000198,2]
[359993965,1746467432249,-72484.38058504,0.000198,2]
[359993966,1746467432259,-200.0,0.000198,2]
[359993967,1746467432268,-984.61165888,0.00019832,2]
[359993968,1746467432278,-187.323863,0.00019853,2]
[359993969,1746467432287,-168.06243758,0.00019879,2]
[359993970,1746467432297,-168.06243758,0.00019884,2]
[359993971,1746467432307,-168.06243758,0.0001989,2]
[359993972,1746467432317,-201.73429737,0.0001989,2]
[359993973,1746467432327,-500.0,0.0001989,2]
[359993974,1746467432336,-500.0,0.0001989,2]
[359993975,1746467432346,-394.05345272,0.0001989,2]
[359993976,1746467432356,-500.0,0.0001989,2]
[359993977,1746467432366,-500.0,0.0001989,2]
[359993978,1746467432375,-500.0,0.0001989,2]
[359993979,1746467432385,-300.0,0.0001989,2]
[359993980,1746467432394,-500.0,0.0001989,2]
[359993981,1746467432403,-500.0,0.0001989,2]
[359993982,1746467432413,-500.0,0.0001989,2]
[359993983,1746467432424,-300.0,0.0001989,2]
[359993985,1746467432434,-11554.12042394,0.00019891,2]
[359993989,1746467432461,-356.39,0.00019891,2]
[359994025,1746467438118,-589.48957606,0.00019891,2]
[359994026,1746467438128,-168.06243758,0.00019895,2]
[359994027,1746467438137,-185.31510496,0.00019899,2]
[359994028,1746467438147,-175.95099411,0.00019899,2]
[359994029,1746467438157,-175.95099402,0.00019899,2]
[359994030,1746467438166,-175.95099402,0.00019899,2]
[359994031,1746467438176,-175.95099402,0.00019899,2]
[359994032,1746467438185,-175.95099402,0.00019899,2]
[359994033,1746467438194,-175.95099402,0.000199,2]
[359994034,1746467438203,-175.95099402,0.000199,2]
[359994035,1746467438212,-175.95099402,0.000199,2]
[359994036,1746467438222,-2011.28542178,0.000199,3]
[359994037,1746467438231,-168.06243758,0.000199,2]
[359994038,1746467438240,-514.01832814,0.000199,2]
[359994039,1746467438250,-207.4,0.00019913,2]
[359994040,1746467438259,-1041.039,0.00019925,2]
[359994041,1746467438268,-773.496,0.00019925,2]
[359994042,1746467438278,-1141.0,0.00019925,2]
[359994043,1746467438287,-5931.0,0.00019925,2]
[359994044,1746467438296,-450.0,0.00019949,2]
[359994045,1746467438306,-294.51,0.00019949,2]
[359994046,1746467438315,-450.0,0.00019949,2]
[359994047,1746467438324,-450.0,0.00019949,2]
[359994048,1746467438333,-450.0,0.00019949,2]
[359994049,1746467438343,-450.0,0.00019949,2]
[359994050,1746467438353,-478.60968387,0.00019949,2]
[359994051,1746467438364,-593.15258226,0.00019949,2]
[359994052,1746467438374,-450.0,0.00019949,2]
[359994053,1746467438384,-450.0,0.00019949,2]
[359994054,1746467438393,-450.0,0.00019949,2]
[359994055,1746467438403,-192.95,0.00019949,2]
[359994056,1746467438413,-216.97,0.00019949,2]
[359994057,1746467438423,-464.1899375,0.00019949,2]
[359994058,1746467438433,-475.45728952,0.00019949,2]
[359994059,1746467438442,-450.0,0.00019949,2]
[359994060,1746467438452,-450.0,0.00019949,2]
[359994061,1746467438462,-450.0,0.00019949,2]
[359994062,1746467438472,-450.0,0.00019949,2]
[359994063,1746467438482,-450.0,0.00019949,2]
[359994064,1746467438491,-450.0,0.00019949,2]
[359994065,1746467438502,-450.0,0.00019949,2]
[359994066,1746467438512,-450.0,0.00019949,2]
[359994067,1746467438521,-450.0,0.00019949,2]
[359994068,1746467438531,-450.0,0.00019949,2]
[359994069,1746467438541,-450.0,0.00019949,2]
[359994070,1746467438552,-500.0,0.00019949,2]
[359994071,1746467438561,-450.0,0.00019949,2]
[359994072,1746467438571,-478.1649348,0.00019949,2]
[359994073,1746467438580,-478.78169705,0.00019949,2]
[359994074,1746467438590,-450.0,0.00019949,2]
[359994075,1746467438600,-450.0,0.00019949,2]
[359994076,1746467438610,-450.0,0.00019949,2]
[359994077,1746467438619,-450.0,0.00019949,2]
[359994078,1746467438629,-450.0,0.00019949,2]
[359994079,1746467438638,-191.78198695,0.00019949,2]
[359994080,1746467438651,-450.0,0.00019949,2]
[359994081,1746467438660,-450.0,0.00019949,2]
[359994082,1746467438670,-372.25,0.00019949,2]
[359994083,1746467438678,-406.62245349,0.00019949,2]
[359994084,1746467438690,-555.4,0.00019949,2]
[359994085,1746467438699,-487.02448323,0.00019949,2]
[359994086,1746467438709,-450.0,0.00019949,2]
[359994087,1746467438720,-450.0,0.00019949,2]
[359994088,1746467438729,-450.0,0.00019949,2]
[359994089,1746467438739,-588.83,0.00019949,2]
[359994090,1746467438748,-450.0,0.00019949,2]
[359994091,1746467438757,-450.0,0.00019949,2]
[359994092,1746467438767,-450.0,0.00019949,2]
[359994093,1746467438776,-205.97,0.00019949,2]
[359994094,1746467438785,-450.0,0.00019949,2]
[359994095,1746467438794,-450.0,0.00019949,2]
[359994096,1746467438804,-504.08102465,0.00019949,2]
[359994098,1746467438813,-450.0,0.00019949,2]
[359994099,1746467438822,-450.0,0.00019949,2]
[359994101,1746467438831,-295.79,0.00019949,2]
[359994102,1746467438840,-518.19,0.00019949,2]
[359994103,1746467438849,-483.55,0.00019949,2]
[359994104,1746467438858,-366.07,0.00019949,2]
[359994105,1746467438867,-450.0,0.00019949,2]
[359994106,1746467438876,-450.0,0.00019949,2]
[359994107,1746467438885,-450.0,0.00019949,2]
[359994108,1746467438894,-450.0,0.00019949,2]
[359994109,1746467438904,-411.68950583,0.00019949,2]
[359994110,1746467438913,-450.0,0.00019949,2]
[359994111,1746467438922,-9196.0,0.00019973,2]
[359994112,1746467438931,-500.0,0.00019973,2]
[359994113,1746467438940,-500.0,0.00019973,2]
[359994114,1746467438949,-450.0,0.00019979,2]
[359994115,1746467438959,-450.0,0.00019979,2]
[359994116,1746467438969,-486.03,0.00019979,2]
[359994117,1746467438978,-410.28,0.00019979,2]
[359994118,1746467438987,-164.97,0.00019979,2]
[359994119,1746467438996,-450.0,0.00019979,2]
[359994120,1746467439006,-450.0,0.00019979,2]
[359994121,1746467439016,-532.18838209,0.00019979,2]
[359994122,1746467439025,-450.0,0.00019979,2]
[359994123,1746467439035,-450.0,0.00019979,2]
[359994124,1746467439044,-450.0,0.00019979,2]
[359994125,1746467439053,-200.11,0.00019979,2]
[359994126,1746467439062,-262.02,0.00019979,2]
[359994127,1746467439071,-179.985,0.00019985,2]
[359994128,1746467439081,-2143.852,0.00019985,2]
[359994129,1746467439090,-2594.7517532,0.00019986,2]
[359994130,1746467439099,-195.6679514,0.00019986,2]
[359994131,1746467439108,-1744.5798093,0.00019986,2]
[359994132,1746467439117,-23376.1958829,0.00019986,2]
[359994133,1746467439127,-260.3398101,0.00019986,2]
[359994134,1746467439136,-151.0,0.00019987,2]
[359994135,1746467439145,-151.0,0.00019987,2]
[359994136,1746467439155,-668.65185757,0.00019987,2]
[359994137,1746467439164,-249.96733796,0.00019997,2]
[359994138,1746467439173,-150.0,0.00019997,2]
[359994139,1746467439183,-150.0,0.00019997,2]
[359994140,1746467439192,-208.19241057,0.00019997,2]
[359994141,1746467439201,-150.0,0.00019997,2]
[359994142,1746467439210,-150.0,0.00019997,2]
[359994143,1746467439219,-150.0,0.00019997,2]
[359994144,1746467439228,-221.84447777,0.00019997,2]
[359994145,1746467439237,-150.0,0.00019997,2]
[359994146,1746467439247,-150.0,0.00019997,2]
[359994147,1746467439255,-150.0,0.00019997,2]
[359994148,1746467439265,-450.0,0.00019997,2]
[359994149,1746467439274,-450.0,0.00019997,2]
[359994150,1746467439282,-450.0,0.00019997,2]
[359994151,1746467439292,-566.16245869,0.00019997,2]
[359994152,1746467439301,-450.0,0.00019997,2]
[359994153,1746467439310,-450.0,0.00019997,2]
[359994154,1746467439319,-475.33244551,0.00019997,2]
[359994155,1746467439328,-467.05031862,0.00019997,2]
[359994156,1746467439338,-450.0,0.00019997,2]
[359994157,1746467439347,-450.0,0.00019998,2]
[359994158,1746467439356,-450.0,0.00019998,2]
[359994159,1746467439365,-398.33,0.00019998,2]
[359994160,1746467439374,-349.5,0.00019998,2]
[359994161,1746467439383,-450.0,0.00019998,2]
[359994162,1746467439393,-166.71,0.00019998,2]
[359994163,1746467439402,-460.24,0.00019998,2]
[359994164,1746467439411,-286.75,0.00019998,2]
[359994165,1746467439420,-450.0,0.00019998,2]
[359994166,1746467439430,-450.0,0.00019998,2]
[359994167,1746467439439,-450.0,0.00019998,2]
[359994168,1746467439448,-450.0,0.00019998,2]
[359994169,1746467439457,-593.05,0.00019998,2]
[359994170,1746467439466,-450.0,0.00019998,2]
[359994171,1746467439475,-450.0,0.00019998,2]
[359994172,1746467439485,-450.0,0.00019998,2]
[359994173,1746467439494,-450.0,0.00019998,2]
[359994174,1746467439503,-450.0,0.00019998,2]
[359994175,1746467439512,-450.0,0.00019998,2]
[359994176,1746467439521,-450.0,0.00019998,2]
[359994177,1746467439530,-169.51578429,0.00019998,2]
[359994178,1746467439539,-450.0,0.00019998,2]
[359994179,1746467439548,-450.0,0.00019998,2]
[359994180,1746467439558,-4432.32,0.00019998,2]
[359994181,1746467439567,-450.0,0.00019998,2]
[359994182,1746467439577,-450.0,0.00019998,2]
[359994183,1746467439586,-450.0,0.00019998,2]
[359994184,1746467439597,-450.0,0.00019998,2]
[359994185,1746467439606,-450.0,0.00019998,2]
[359994186,1746467439615,-450.0,0.00019998,2]
[359994187,1746467439625,-450.0,0.00019998,2]
[359994188,1746467439634,-450.0,0.00019998,2]
[359994189,1746467439645,-667.64,0.00019998,2]
[359994190,1746467439654,-500.0,0.00019998,2]
[359994191,1746467439663,-450.0,0.00019998,2]
[359994192,1746467439672,-450.0,0.00019998,2]
[359994193,1746467439683,-450.0,0.00019998,2]
[359994194,1746467439692,-450.0,0.00019998,2]
[359994195,1746467439702,-450.0,0.00019998,2]
[359994196,1746467439711,-527.09,0.00019998,2]
[359994197,1746467439721,-450.0,0.00019998,2]
[359994199,1746467439730,-450.0,0.00019998,2]
[359994201,1746467439739,-450.0,0.00019998,2]
[359994203,1746467439748,-450.0,0.00019998,2]
[359994205,1746467439757,-450.0,0.00019998,2]
[359994207,1746467439766,-450.0,0.00019998,2]
[359994209,1746467439775,-450.0,0.00019998,2]
[359994211,1746467439784,-450.0,0.00019998,2]
[359994213,1746467439793,-450.0,0.00019998,2]
[359994215,1746467439802,-450.0,0.00019998,2]
[359994217,1746467439811,-550.02,0.00019998,2]
[359994219,1746467439821,-450.0,0.00019998,2]
[359994221,1746467439830,-520.04,0.00019998,2]
[359994223,1746467439840,-450.0,0.00019998,2]
[359994225,1746467439849,-592.18519138,0.00019998,2]
[359994227,1746467439858,-321.32059115,0.00019998,2]
[359994229,1746467439868,-450.0,0.00019998,2]
[359994231,1746467439877,-567.63,0.00019998,2]
[359994233,1746467439886,-450.0,0.00019998,2]
[359994234,1746467439895,-450.0,0.00019998,2]
[359994236,1746467439904,-450.0,0.00019998,2]
[359994238,1746467439913,-450.0,0.00019998,2]
[359994240,1746467439922,-450.0,0.00019998,2]
[359994242,1746467439932,-450.0,0.00019998,2]
[359994244,1746467439942,-536.93,0.00019998,2]
[359994247,1746467439951,-450.0,0.00019998,2]
[359994249,1746467439960,-450.0,0.00019998,2]
[359994251,1746467439970,-450.0,0.00019998,2]
[359994253,1746467439981,-450.0,0.00019998,2]
[359994254,1746467439990,-450.0,0.00019998,2]
[359994255,1746467440000,-450.0,0.00019998,2]
[359994256,1746467440009,-450.0,0.00019998,2]
[359994257,1746467440018,-3113.78,0.00019998,2]
[359994258,1746467440027,-450.0,0.00019998,2]
[359994259,1746467440036,-450.0,0.00019998,2]
[359994260,1746467440045,-450.0,0.00019998,2]
[359994261,1746467440054,-450.0,0.00019998,2]
[359994262,1746467440063,-450.0,0.00019998,2]
[359994263,1746467440073,-450.0,0.00019998,2]
[359994264,1746467440082,-450.0,0.00019998,2]
[359994265,1746467440090,-450.0,0.00019998,2]
[359994266,1746467440099,-450.0,0.00019998,2]
[359994267,1746467440108,-758.09,0.00019998,2]
[359994268,1746467440118,-450.0,0.00019998,2]
[359994269,1746467440127,-450.0,0.00019998,2]
[359994270,1746467440136,-450.0,0.00019998,2]
[359994271,1746467440145,-293.35,0.00019998,2]
[359994272,1746467440154,-450.0,0.00019998,2]
[359994273,1746467440163,-450.0,0.00019998,2]
[359994274,1746467440172,-450.0,0.00019998,2]
[359994275,1746467440182,-450.0,0.00019998,2]
[359994277,1746467440191,-487.7,0.00019998,2]
[359994279,1746467440200,-450.0,0.00019998,2]
[359994281,1746467440209,-450.0,0.00019998,2]
[359994282,1746467440217,-770.84,0.00019998,2]
[359994283,1746467440226,-450.0,0.00019998,2]
[359994284,1746467440235,-450.0,0.00019998,2]
[359994285,1746467440244,-450.0,0.00019998,2]
[359994286,1746467440253,-450.0,0.00019998,2]
[359994287,1746467440262,-450.0,0.00019998,2]
[359994288,1746467440271,-450.0,0.00019998,2]
[359994289,1746467440281,-450.0,0.00019998,2]
[359994290,1746467440290,-494.21,0.00019998,2]
[359994291,1746467440299,-450.0,0.00019998,2]
[359994292,1746467440308,-450.0,0.00019998,2]
[359994293,1746467440317,-450.0,0.00019998,2]
[359994294,1746467440326,-450.0,0.00019998,2]
[359994295,1746467440336,-450.0,0.00019998,2]
[359994296,1746467440345,-450.0,0.00019998,2]
[359994297,1746467440354,-450.0,0.00019998,2]
[359994298,1746467440363,-450.0,0.00019998,2]
[359994299,1746467440372,-450.0,0.00019998,2]
[359994300,1746467440382,-450.0,0.00019998,2]
[359994301,1746467440392,-210.42,0.00019999,2]
[359994302,1746467440401,-519.77,0.00019999,2]
[359994303,1746467440410,-450.0,0.00019999,2]
[359994304,1746467440420,-346.07,0.00019999,2]
[359994305,1746467440429,-557.07227877,0.00019999,2]
[359994306,1746467440438,-450.0,0.00019999,2]
[359994307,1746467440448,-4432.32,0.00019999,2]
[359994308,1746467440457,-4432.32,0.00019999,2]
[359994309,1746467440466,-4432.32,0.00019999,2]
[359994310,1746467440476,-4432.32,0.00019999,2]
[359994311,1746467440486,-4432.32,0.00019999,2]
[359994312,1746467440495,-4432.32,0.00019999,2]
[359994313,1746467440504,-4432.32,0.00019999,2]
[359994314,1746467440513,-4432.32,0.00019999,2]
[359994315,1746467440522,-4432.32,0.00019999,2]